Cogmind - Beta 11 @@@ ROGUE MODE // 2022.04.04 @ 00:47:47 Player: Runia Result: Destroyed by as-91928 with Assembled Heavy Rifle Performance ------------- Evolutions (0) 0 Regions Visited (4) 800 Robots Destroyed (30) 150 Value Destroyed (749) 749 Prototype IDs (2) 40 Alien Tech Used (0) 0 Bonus (0) 0 TOTAL SCORE: 1739 Bonus ------- None Cogmind --------- Core Integrity 0/250 Matter 227/300 Energy 86/100 System Corruption 3% Temperature Cool (0) Movement Treading (240) Ox1 Location -9/Mines Parts ------- > --- POWER (1) -------- (None) > --- PROPULSION (2) --- Light Treads Light Treads > --- UTILITY (2) ------ High-capacity Storage Unit Light Armor Plating > --- WEAPON (2) ------- Autogun > --- INVENTORY (20) --- Light Nuclear Core Structural Scanner Hacking Suite Assault Rifle Assault Rifle Assault Rifle Autogun Autogun Grenade Launcher Rocket Launcher Peak State ------------ > --- POWER ------------ Improved Ion Engine > --- PROPULSION ------- Light Treads Light Treads > --- UTILITY ---------- High-capacity Storage Unit Structural Scanner > --- WEAPON ----------- Assault Rifle Assault Rifle > --- INVENTORY -------- Ion Engine Light Nuclear Core Light Treads Light Treads Light Treads Light Armor Plating Hacking Suite Assault Rifle Assault Rifle Assault Rifle Autogun Autogun Autogun Autogun Grenade Launcher [Rating: 10] Favorites ----------- Power Improved Ion Engine Engine Improved Ion Engine Propulsion Light Treads Treads Light Treads Leg Aluminum Leg Utility Structural Scanner Device Structural Scanner Storage High-capacity Storage Unit Protection Light Armor Plating Weapon Assault Rifle Energy Gun Medium Laser Ballistic Gun Assault Rifle Launcher Grenade Launcher Build | -11 -10 -10 -10 -9 ------- Run | Scr Mat Min Exi Min Slots Evolved . | . . . . . Power . | . . . . . Propulsion . | . . . . . Utility . | . . . . . Weapon . | . . . . . Parts Attached 24 | 2 12 3 . 7 Power 2 | . 1 1 . . Engine 2 | . 1 1 . . Core . | . . . . . Reactor . | . . . . . Propulsion 7 | 2 2 . . 3 Treads 7 | 2 2 . . 3 Leg . | . . . . . Wheel . | . . . . . Hover . | . . . . . Flight . | . . . . . Utility 5 | . 3 . . 2 Device 1 | . 1 . . . Storage 2 | . 2 . . . Processor . | . . . . . Hackware . | . . . . . Protection 2 | . . . . 2 Artifact . | . . . . . Weapon 10 | . 6 2 . 2 Energy Gun . | . . . . . Energy Cannon . | . . . . . Ballistic Gun 7 | . 4 1 . 2 Ballistic Cannon . | . . . . . Launcher 3 | . 2 1 . . Special Weapon . | . . . . . Impact Weapon . | . . . . . Slashing Weapon . | . . . . . Piercing Weapon . | . . . . . Special Melee Weapon . | . . . . . Unidentified Prototypes . | . . . . . Parts Lost 9 | . 1 . . 8 Power 2 | . 1 . . 1 Propulsion 3 | . . . . 3 Utility 1 | . . . . 1 Weapon 3 | . . . . 3 Highest Loss Streak 6 | . 1 . . 6 To Critical Strikes . | . . . . . Average Slot Usage (%) 99 | . 99 100 100 79 Engine 13 | . 13 14 14 2 Treads 27 | . 28 28 28 20 Device 13 | . 13 14 14 4 Storage 14 | . 14 14 14 14 Energy Gun 1 | . 6 . . . Ballistic Gun 26 | . 21 27 28 28 Naked Turns . | . . . . . Heaviest Build 52 | 12 50 52 52 52 Greatest Support 40 | 40 40 40 40 40 Greatest Overweight (x) 1 | . 1 1 1 1 Average Overweight (x) . | . . 1 1 1 Largest Inventory Capacity 20 | 8 20 20 20 20 Average Capacity 18 | 8 15 20 20 20 Most Carried 16 | 5 14 16 16 16 Average Carried 12 | 1 5 14 16 12 Final Capacity 20 | 8 20 20 20 20 Final Carried 16 | 1 12 16 16 10 Class Distribution -------------------- 100% | Mutant Dominant Class ---------------- Mutant | -10/Materials Mutant | -10/Mines Mutant | -10/Exiles Mutant | -9/Mines Resources | -11 -10 -10 -10 -9 ----------- Run | Scr Mat Min Exi Min Matter Collected 787 | 200 276 249 . 62 Remotely . | . . . . . Salvage Created 840 | 86 426 223 . 105 Parts 49 | . 30 15 . 4 Haulers Intercepted 1 | . 1 . . . Recyclers Shooed 1 | 1 . . . . Parts Field Recycled . | . . . . . Retrieved Matter . | . . . . . Parts Self-Destructed . | . . . . . Prevented . | . . . . . Kills | -11 -10 -10 -10 -9 ------- Run | Scr Mat Min Exi Min Combat Hostiles Destroyed 24 | . 12 9 . 3 Guns 14 | . 5 6 . 3 AOE 10 | . 7 3 . . Classes Destroyed 8 | 1 5 . . 2 Worker 2 | . 1 1 . . Builder 1 | . . . . 1 Hauler 1 | . 1 . . . Recycler 1 | 1 . . . . Operator 1 | . 1 . . . Swarmer 8 | . 2 6 . . Grunt 15 | . 10 3 . 2 Demolisher 1 | . . . . 1 Best Kill Streak 6 | 1 6 3 . 4 Combat Bots Only 6 | . 6 3 . 3 Max Kills in Single Turn 4 | 1 4 3 . 1 Gunslinging . | . . . . . Exploded 3 | . 2 3 . . Melee . | . . . . . Uniques/NPCs Destroyed . | . . . . . Combat | -11 -10 -10 -10 -9 -------- Run | Scr Mat Min Exi Min Damage Taken 1550 | . 384 404 . 762 Core 265 | . 85 39 . 141 Absorbed by Shields . | . . . . . Core Remaining (%) 100 | 100 . . . . Volleys Fired 81 | 4 36 29 . 12 Largest 2 | 2 2 2 . 2 Hottest 70 | 70 70 40 . 46 Shots Fired 155 | 8 67 57 . 23 Gun 149 | 8 62 56 . 23 Cannon . | . . . . . Launcher 6 | . 5 1 . . Special . | . . . . . Kinetic 124 | 4 41 56 . 23 Thermal 25 | 4 21 . . . Explosive 6 | . 5 1 . . Electromagnetic . | . . . . . Robot Hit Streak 27 | 2 17 23 . 27 Robot Miss Streak 4 | 2 3 4 . 2 Penetration Max . | . . . . . Secondary Targets 2 | . . . . 2 Max Gunslinging Chain 1 | . . . . 1 Shots Hit Robots 102 | 4 45 34 . 19 Core Hits 52 | 2 25 16 . 9 Critical Kills 1 | . . 1 . . Critical Parts Destroyed . | . . . . . Critical Strikes 1 | . . 1 . . Destroy 1 | . . 1 . . Melee Attacks . | . . . . . Impact . | . . . . . Slashing . | . . . . . Piercing . | . . . . . Sneak Attacks . | . . . . . Combat Hostiles . | . . . . . Follow-up Attacks . | . . . . . Damage Inflicted 1913 | 50 1003 567 . 293 Guns 1338 | 50 573 422 . 293 Cannons . | . . . . . Explosions 572 | . 430 142 . . Melee . | . . . . . Ramming 3 | . . 3 . . Kinetic 1087 | 37 335 422 . 293 Thermal 251 | 13 238 . . . Explosive 572 | . 430 142 . . Electromagnetic . | . . . . . Impact . | . . . . . Slashing . | . . . . . Piercing . | . . . . . Highest Corruption . | . . . . . Average Corruption . | . . . . . Corruption Purged . | . . . . . Corruption Blocked . | . . . . . Overload Shots . | . . . . . Overflow Damage . | . . . . . Projectiles . | . . . . . Explosions . | . . . . . Melee . | . . . . . Knockbacks . | . . . . . Impact . | . . . . . Kinetic . | . . . . . Secondary . | . . . . . Self-Inflicted Damage 22 | . 22 . . . Shots 1 | . 1 . . . Rammed 1 | . . 1 . . Targets Rammed 1 | . . 1 . . Kicked . | . . . . . Crushed . | . . . . . Highest Temperature 107 | 36 107 21 . 22 Average Temperature 30 | 19 43 9 . 8 Received Heat Transfer 465 | . 174 180 . 111 Siege Activations . | . . . . . Robots Corrupted . | . . . . . Combat Hostiles . | . . . . . Parts Fried . | . . . . . Impact Corruptions . | . . . . . Robots Melted . | . . . . . Combat Hostiles . | . . . . . Parts Melted 1 | . 1 . . . Heat Transferred 740 | 37 703 . . . Parts Sabotaged . | . . . . . Parts Stolen . | . . . . . Parts Stripped . | . . . . . Power Chain Reactions . | . . . . . Missiles Intercepted . | . . . . . Alert | -11 -10 -10 -10 -9 ------- Run | Scr Mat Min Exi Min Peak Influence 322 | 5 322 169 . 90 Initial 69 | . 3 69 . . Average 95 | . 152 66 . 43 Maximum Alert Level 1 | . 1 . . . Low Security (%) 92 | 100 78 100 . 100 Level 1 7 | . 21 . . . Level 2 . | . . . . . Level 3 . | . . . . . Level 4 . | . . . . . Level 5 . | . . . . . High Security . | . . . . . Max Security . | . . . . . Squads Dispatched 4 | . 4 . . . Investigation 2 | . 2 . . . Extermination . | . . . . . Reinforcement 2 | . 2 . . . Assault . | . . . . . Garrison . | . . . . . Intercept . | . . . . . Searches Triggered . | . . . . . Construction Impeded . | . . . . . Haulers Reinforced . | . . . . . Active Scanning Responses . | . . . . . Cargo Convoy Interrupts . | . . . . . Stealth | -11 -10 -10 -10 -9 --------- Run | Scr Mat Min Exi Min Distress Signals 2 | . 1 . . 1 Communications Jammed . | . . . . . Distress Signals . | . . . . . Times Spotted 48 | . 26 12 . 10 Peak Tracking Total 7 | . 7 3 . 5 Tactical Retreats 3 | . . 2 . 1 Traps | -11 -10 -10 -10 -9 ------- Run | Scr Mat Min Exi Min Traps Triggered 2 | . 2 . . . Indirectly . | . . . . . Trap Hack Attempts . | . . . . . Triggered . | . . . . . Disarmed . | . . . . . Reprogrammed . | . . . . . Reused . | . . . . . Traps Extracted . | . . . . . Installed . | . . . . . Triggered . | . . . . . Machines | -11 -10 -10 -10 -9 ---------- Run | Scr Mat Min Exi Min Machines Disabled 1 | . 1 . . . Max in Single Turn 1 | . 1 . . . Machines Sabotaged . | . . . . . Garrisons Compromised . | . . . . . Overloaded Fab Kills . | . . . . . Hacking | -11 -10 -10 -10 -9 --------- Run | Scr Mat Min Exi Min Machines Accessed 8 | . 7 . 1 . Terminals 6 | . 6 . . . Fabricators . | . . . . . Repair Stations . | . . . . . Recycling Units 1 | . 1 . . . Scanalyzers . | . . . . . Garrison Access . | . . . . . Total Hacks 18 | . 17 . 1 . Successful 6 | . 5 . 1 . Failed 12 | . 12 . . . Catastrophic 2 | . 2 . . . Database Lockouts . | . . . . . Manual 10 | . 10 . . . Terminals 16 | . 16 . . . Fabricators . | . . . . . Repair Stations . | . . . . . Recycling Units 1 | . 1 . . . Scanalyzers . | . . . . . Garrison Access . | . . . . . Terminal Hacks 5 | . 4 . 1 . Record 1 | . . . 1 . Prototype ID Bank 1 | . 1 . . . Terminal Index 1 | . 1 . . . Locate Traps 2 | . 2 . . . Fabricator Hacks . | . . . . . Repair Station Hacks . | . . . . . Recycling Unit Hacks . | . . . . . Scanalyzer . | . . . . . Garrison Access Hacks . | . . . . . Unauthorized Hacks 1 | . 1 . . . Terminals . | . . . . . Fabricators . | . . . . . Repair Stations . | . . . . . Recycling Units 1 | . 1 . . . Tunnel 1 | . 1 . . . Scanalyzers . | . . . . . Garrison Access . | . . . . . Data Cores Recovered . | . . . . . Used . | . . . . . Hacking Detections 6 | . 6 . . . Full Trace Events . | . . . . . Feedback Events . | . . . . . Feedback Blocked . | . . . . . Robot Schematics Acquired . | . . . . . Robots Built . | . . . . . Authchips . | . . . . . Time . | . . . . . Total Robot Build Rating . | . . . . . Part Schematics Acquired . | . . . . . Parts Built . | . . . . . Authchips . | . . . . . Time . | . . . . . Total Part Build Rating . | . . . . . Parts Repaired . | . . . . . Time . | . . . . . Parts Recycled . | . . . . . Recycled Matter . | . . . . . Retrieved Matter . | . . . . . Retrieved Components . | . . . . . Parts Scanalyzed . | . . . . . Part Schematics Acquired . | . . . . . Parts Damaged . | . . . . . Bothacking | -11 -10 -10 -10 -9 ------------ Run | Scr Mat Min Exi Min Used RIF Installer . | . . . . . Robots Hacked . | . . . . . Non-combat . | . . . . . Combat . | . . . . . Robot Hacks Applied . | . . . . . Relay Couplers Released . | . . . . . Fabnet Peak Effective % . | . . . . . Robots Rewired . | . . . . . Allies Hacked . | . . . . . Hacks Repelled . | . . . . . Allies | -11 -10 -10 -10 -9 -------- Run | Scr Mat Min Exi Min Total Allies 3 | . . 3 . . Largest Group 3 | . . 3 3 3 Highest-Rated Group 40 | . . 40 40 40 Highest-Rated Ally 16 | . . 16 16 16 Total Orders . | . . . . . Ally Attacks 4 | . . . . 4 Total Damage 47 | . . . . 47 Kills . | . . . . . Allies Corrupted . | . . . . . Allies Melted . | . . . . . Intel | -11 -10 -10 -10 -9 ------- Run | Scr Mat Min Exi Min Robot Analysis Total . | . . . . . Derelict Logs Recovered 1 | . . 1 . . Drone Launches . | . . . . . Drone Recoveries . | . . . . . Exploration | -11 -10 -10 -10 -9 ------------- Run | Scr Mat Min Exi Min Turns Passed 3909 | 17 1148 2090 591 63 Spaces Moved 1637 | 1 562 817 247 10 Core . | . . . . . Treads 1637 | 1 562 817 247 10 Legs . | . . . . . Wheels . | . . . . . Hover . | . . . . . Flight . | . . . . . Fastest Speed 160 | 160 160 240 240 240 Average Speed 218 | 160 176 240 240 240 Slowest Speed 240 | 160 240 240 240 240 Overloaded Moves . | . . . . . Propulsion Burnouts . | . . . . . Robots Hopped . | . . . . . Cave-ins Triggered . | . . . . . Exploration Rate (%) 53 | 1 90 98 69 11 Regions Visited 4 Branch Regions 3 Pre-discovered Areas 2 | . 1 1 . . Known Exits Taken . | . . . . . Unknown Exits Taken 4 | 1 1 1 1 . Scrap Searched 2 | . . 2 . . Spaces Dug . | . . . . . Terrain Destroyed 30 | . 20 10 . . Melee . | . . . . . Projectile . | . . . . . AOE 30 | . 20 10 . . Terrain Rammed . | . . . . . Walls Destroyed . | . . . . . Machines Disabled . | . . . . . Actions | -11 -10 -10 -10 -9 --------- Run | Scr Mat Min Exi Min Total 1825 | 11 649 888 246 31 Wait 57 | . 24 31 . 2 Move 1633 | . 561 816 246 10 Hop . | . . . . . Pick Up 17 | . 11 6 . . Fast Attach 2 | . 2 . . . Attach 9 | 2 1 . . 6 Detach . | . . . . . Swap 13 | . 9 3 . 1 Drop 12 | 5 5 2 . . Fire 81 | 4 36 29 . 12 Melee . | . . . . . Ram . | . . . . . Kick . | . . . . . Crush 1 | . . 1 . . Escape Stasis . | . . . . . Rewire . | . . . . . Trap . | . . . . . Miscellaneous . | . . . . . Route ------- -11/Scrapyard -10/Materials (discovered 4 exits: [*Mat x3] / [*Min]) -10/Mines (discovered 3 exits: [*Mat x2] / *Exi) -10/Exiles -9/Mines (discovered 1 exit: [*Mat]) History --------- Turn | Location | Event 18 | -11/Scrapyard | Discovered new exit (range 0) 18 | -11/Scrapyard | Entered Materials 198 | -10/Materials | Discovered new exit (range 4) 317 | -10/Materials | Build established: Mutant 505 | -10/Materials | Discovered new exit (range 14) 597 | -10/Materials | Discovered new exit (range 16) 722 | -10/Materials | Discovered new exit (range 8) 1166 | -10/Materials | Entered Mines 1325 | -10/Mines | Learned location of Zion (-7) 1423 | -10/Mines | Deemed a non-threat by the Exiles lab entrance 1423 | -10/Mines | Discovered new exit (range 5) 1817 | -10/Mines | Joined a pair of Derelicts in attacking an 0b10 outpost 2014 | -10/Mines | Received a Rocket Launcher from a helpful Derelict 2965 | -10/Mines | Discovered new exit (range 8) 3018 | -10/Mines | Discovered new exit (range 5) 3030 | -10/Mines | Assisted by bots powering up and referring to "LRC-V3" 3256 | -10/Mines | Entered Exiles 3256 | -10/Exiles | Found Exiles lab abandoned 3256 | -10/Exiles | Accompanied by 3 allies 3820 | -10/Exiles | Discovered new exit (range 12) 3847 | -10/Exiles | Entered Mines 3847 | -9/Mines | Accompanied by 3 allies 3848 | -9/Mines | Assembled infested the area 3851 | -9/Mines | Core integrity fell below 50% 3852 | -9/Mines | Discovered new exit (range 9) 3853 | -9/Mines | Assisted by a Guerilla fighting off Assembled 3861 | -9/Mines | Core integrity fell below 20% 3899 | -9/Mines | Lost 6 parts (1p3n2w) 3910 | -9/Mines | Destroyed by as-91928 with Assembled Heavy Rifle Last Messages --------------- 03878_ U-05 Engineer destroyed. 03878_ U-05 Engineer builds a Wall. 03883_ U-05 Engineer lays Concrete. 03888_ G-47 Trooper destroyed. 03888_ U-05 Engineer lays Concrete. 03890_ The unstable cave ceiling collapses. 03890_ U-05 Engineer lays Concrete. 03899_ Acquired 20 matter. 03899_ U-05 Engineer lays Concrete. 03901_ Acquired 28 matter. 03902_ U-05 Engineer lays Concrete. 03905_ as-82887 suffers critical hit (Destroy). 03905_ as-82887 destroyed. 03906_ U-05 Engineer lays Concrete. 03906_ Acquired 14 matter. 03907_ Lgt. Armor Plating destroyed. 03907_ U-05 Engineer lays Concrete. 03908_ R-06 Scavenger collects Lgt. Ion Engine. 03910_ Autogun destroyed. 03910_ System corrupted by crushing effect (+3). Map ----- +----------------------------------------------------+ | ?????????????????????????????????????????????????? | | ?????????????????????????????????????????????????? | | ?????????????????????????????????????????????????? | | ?????????????????????????????????????????????????? | | ?????????????????????????????????????????????????? | | ?????????????????????????????????????????????????? | | ?????????????????????????????????????????????????? | | ?????????????????????????????????????????????????? | | ?????????????????????????????????????????????????? | | ?????????????????????????????????????????????????? | | ?????????????????????????????????????????????????? | | ?????????????????????????????????????????????????? | | ????????????######???????????????????????????????? | | ???????????##########???######???????????????????? | | ???????????### ##############??????????????????? | | ???????????## ###### ####?????????????????? | | ???????????## ## ###?????????????????? | | ???????????### ##?????????????????? | | ????????????## ##?????????????????? | | ????????????## ###?????????????????? | | ????????????## % ####??????????????????? | | ????????????## % ## ????????????????????? | | ????????????## r ##?#???????????????????? | | ????????????### ## ##??????????????????? | | ????????????## %##a ##??????????????????? | | ????????????## !# @##"##??????????????????? | | ????????????### # !#####??????????????????? | | ????????????#### #### %<= ##???????????????????? | | ?????????????######### ][ ##???????????????????? | | ??????????????#####??# ##???????????????????? | | ?????????????????????# ##???????????????????? | | ?????????????????????# ##???????????????????? | | ?????????????????????##T# ####???????????????????? | | ??????????????????????###a####???????????????????? | | ????????????????????????? ##?????????????????????? | | ?????????????????????????a#??????????????????????? | | ????????????????????????? ???????????????????????? | | ????????????????????????? ???????????????????????? | | ?????????????????????????#???????????????????????? | | ?????????????????????????????????????????????????? | | ?????????????????????????????????????????????????? | | ?????????????????????????????????????????????????? | | ?????????????????????????????????????????????????? | | ?????????????????????????????????????????????????? | | ?????????????????????????????????????????????????? | | ?????????????????????????????????????????????????? | | ?????????????????????????????????????????????????? | | ?????????????????????????????????????????????????? | | ?????????????????????????????????????????????????? | | ?????????????????????????????????????????????????? | +----------------------------------------------------+ Best States ------------- Heat Dissipation 25 Energy Generation 12 Energy Capacity 265 Matter Stores 300 Matter Capacity 300 Sight Range 16 Terrain Scan Density 10 Armor Coverage 150 Evasion (%) 40 Recoil Reduction 2 Item Schematics ----------------- None Robot Schematics ------------------ None Fabricated ------------ Nothing Alien Tech Used ----------------- None Achievements -------------- None Challenges ------------ None Game ------ Seed ThermicThunderShockpuncher Manual? 0 Play Time 00:14:29 Cumulative 562.5 hours Start 2022.04.04 @ 00:30:09 End 2022.04.04 @ 00:47:47 Sessions 1 Manual Loads 0 Difficulty Rogue Special Mode None Game No. 539 Rogue 539 Adventurer 0 Explorer 0 Win Type - Total 17 Types 10/2/3/1/0/0/0/1/0 Lore% 86 Gallery% 93 Achievement% 76 Wizard Run 0 Options --------- ASCII 0 Keyboard 0 Movement Numpad Keybinds 1 Fullscreen 2 Font 24/Smallcaps Map View 76x50 Tactical HUD 1 Map Filters NONE Filters NONE Steam 1 RUN: 5804ce68-0613-4f47-af19-906c34931f38